fUSD/lending_fUSD_20250916
["ID","MTS","AMOUNT","RATE_DAILY","PERIOD"]
[385832864,1758058247952,-400.0,0.00030919,6]
[385832866,1758058247963,-400.0,0.00030919,6]
[385832868,1758058247973,-400.0,0.00030919,6]
[385832870,1758058247983,-400.0,0.00030919,6]
[385832872,1758058247994,-400.0,0.00030919,6]
[385832874,1758058248005,-400.0,0.00030919,6]
[385832876,1758058248014,-400.0,0.00030919,6]
[385832879,1758058248024,-1275.83,0.00030919,6]
[385832881,1758058248033,-408.95,0.00030919,6]
[385832883,1758058248043,-400.0,0.00030919,6]
[385832885,1758058248053,-400.0,0.00030919,6]
[385832887,1758058248063,-400.0,0.00030919,6]
[385832889,1758058248073,-400.0,0.00030919,6]
[385832891,1758058248083,-467.76,0.00030919,6]
[385832893,1758058248093,-400.0,0.00030919,6]
[385832895,1758058248103,-833.72,0.00030919,6]
[385832897,1758058248113,-400.0,0.00030919,6]
[385832899,1758058248124,-400.0,0.00030919,6]
[385832902,1758058248134,-400.0,0.00030919,6]
[385832904,1758058248145,-529.33,0.00030919,6]
[385832906,1758058248155,-935.51,0.00030919,6]
[385832908,1758058248166,-539.44,0.00030919,6]
[385832910,1758058248176,-500.0,0.00030924,7]
[385832912,1758058248187,-1000.0,0.00030938,7]
[385832914,1758058248197,-885.22,0.00030956,6]
[385832916,1758058248207,-882.33,0.00030956,6]
[385832918,1758058248218,-400.0,0.00030956,6]
[385832921,1758058248228,-583.88,0.00030956,6]
[385832923,1758058248239,-500.0,0.00030957,6]
[385832925,1758058248249,-277.09,0.00030957,6]
[385832927,1758058248259,-400.0,0.00030957,6]
[385832929,1758058248269,-400.0,0.00030957,6]
[385832931,1758058248279,-430.85853681,0.00030957,6]
[385832933,1758058248289,-483.26463395,0.00030957,6]
[385832935,1758058248299,-400.0,0.00030957,6]
[385832938,1758058248310,-400.0,0.00030957,6]
[385832940,1758058248320,-400.0,0.00030957,6]
[385832942,1758058248330,-194.92227366,0.00030957,6]
[385832944,1758058248340,-400.0,0.00030957,6]
[385832946,1758058248350,-400.0,0.00030957,6]
[385832948,1758058248360,-400.0,0.00030957,6]
[385832950,1758058248369,-400.0,0.00030957,6]
[385832952,1758058248379,-400.0,0.00030957,6]
[385832954,1758058248388,-400.0,0.00030957,6]
[385832956,1758058248398,-400.0,0.00030957,6]
[385832958,1758058248408,-400.0,0.00030957,6]
[385832961,1758058248418,-400.0,0.00030957,6]
[385832963,1758058248428,-400.0,0.00030957,6]
[385832965,1758058248438,-544.6,0.00030957,6]
[385832967,1758058248449,-400.0,0.00030957,6]
[385832969,1758058248458,-400.0,0.00030957,6]
[385832971,1758058248468,-400.0,0.00030957,6]
[385832973,1758058248478,-400.0,0.00030957,6]
[385832975,1758058248488,-400.0,0.00030957,6]
[385832977,1758058248498,-400.0,0.00030957,6]
[385832979,1758058248508,-1543.15,0.00030957,6]
[385832982,1758058248521,-400.0,0.00030957,6]
[385832984,1758058248531,-400.0,0.00030957,6]
[385832986,1758058248541,-400.0,0.00030957,6]
[385832988,1758058248551,-2060.24,0.00030957,6]
[385832990,1758058248560,-400.0,0.00030957,6]
[385832992,1758058248570,-400.0,0.00030957,6]
[385832994,1758058248581,-400.0,0.00030957,6]
[385832996,1758058248591,-537.85,0.00030957,6]
[385832998,1758058248601,-400.0,0.00030957,6]
[385833000,1758058248612,-400.0,0.00030957,6]
[385833003,1758058248622,-400.0,0.00030957,6]
[385833005,1758058248632,-400.0,0.00030957,6]
[385833007,1758058248642,-2321.08,0.00030957,6]
[385833009,1758058248652,-400.0,0.00030957,6]
[385833011,1758058248662,-400.0,0.00030957,6]
[385833013,1758058248671,-400.0,0.00030957,6]
[385833015,1758058248681,-400.0,0.00030957,6]
[385833017,1758058248691,-400.0,0.00030957,6]
[385833019,1758058248701,-400.0,0.00030957,6]
[385833021,1758058248712,-400.0,0.00030957,6]
[385833023,1758058248722,-400.0,0.00030957,6]
[385833025,1758058248732,-2927.23,0.00030957,6]
[385833028,1758058248743,-400.0,0.00030957,6]
[385833030,1758058248753,-400.0,0.00030958,6]
[385833032,1758058248763,-400.0,0.00030958,6]
[385833034,1758058248773,-400.0,0.00030958,6]
[385833036,1758058248783,-461.14,0.00030958,6]
[385833038,1758058248793,-400.0,0.00030958,6]
[385833040,1758058248803,-400.0,0.00030958,6]
[385833042,1758058248813,-400.0,0.00030958,6]
[385833044,1758058248823,-190.28,0.00030958,6]
[385833046,1758058248834,-226.31,0.00030958,6]
[385833048,1758058248844,-400.0,0.00030958,6]
[385833050,1758058248854,-400.0,0.00030958,6]
[385833053,1758058248864,-400.0,0.00030958,6]
[385833055,1758058248878,-539.64,0.00030958,6]
[385833057,1758058248889,-400.0,0.00030958,6]
[385833059,1758058248899,-400.0,0.00030958,6]
[385833061,1758058248910,-400.0,0.00030958,6]
[385833063,1758058248921,-416.98,0.00030958,6]
[385833065,1758058248931,-400.0,0.00030958,6]
[385833068,1758058248944,-400.0,0.00030958,6]
[385833070,1758058248955,-400.0,0.00030958,6]
[385833072,1758058248966,-400.0,0.00030958,6]
[385833074,1758058248976,-400.0,0.00030958,6]
[385833076,1758058248986,-400.0,0.00030958,6]
[385833078,1758058248997,-400.0,0.00030958,6]
[385833080,1758058249007,-400.0,0.00030958,6]
[385833082,1758058249017,-400.0,0.00030958,6]
[385833084,1758058249028,-400.0,0.00030958,6]
[385833086,1758058249038,-530.21,0.00030958,6]
[385833088,1758058249048,-727.34,0.00030958,6]
[385833090,1758058249059,-531.6,0.00030958,6]
[385833091,1758058249069,-2312.57,0.00030958,6]
[385833092,1758058249079,-586.9,0.00030958,6]
[385833093,1758058249090,-400.0,0.00030958,6]
[385833094,1758058249101,-400.0,0.00030958,6]
[385833095,1758058249111,-627.93,0.00030958,6]
[385833096,1758058249122,-400.0,0.00030958,6]
[385833097,1758058249132,-753.33,0.00030958,6]
[385833099,1758058249142,-400.0,0.00030958,6]
[385833101,1758058249153,-400.0,0.00030958,6]
[385833103,1758058249163,-589.16,0.00030958,6]
[385833105,1758058249173,-609.41,0.00030958,6]
[385833107,1758058249183,-510.36,0.00030958,6]
[385833109,1758058249193,-400.0,0.00030958,6]
[385833111,1758058249203,-2593.28,0.00030958,6]
[385833114,1758058249214,-684.2,0.00030958,6]
[385833116,1758058249224,-511.86,0.00030958,6]
[385833118,1758058249234,-764.41,0.00030958,6]
[385833120,1758058249244,-409.5,0.00030958,6]
[385833122,1758058249254,-594.69,0.00030958,6]
[385833124,1758058249264,-400.0,0.00030958,6]
[385833126,1758058249275,-400.0,0.00030958,6]
[385833128,1758058249285,-918.03,0.00030958,6]
[385833130,1758058249294,-563.64,0.00030958,6]
[385833132,1758058249304,-955.33,0.00030958,6]
[385833135,1758058249315,-3040.54,0.00030958,6]
[385833137,1758058249325,-400.0,0.00030958,6]
[385833139,1758058249335,-400.0,0.00030958,6]
[385833141,1758058249345,-594.06,0.00030958,6]
[385833143,1758058249355,-659.68,0.00030958,6]
[385833145,1758058249365,-400.0,0.00030958,6]
[385833147,1758058249375,-483.06,0.00030958,6]
[385833149,1758058249386,-400.0,0.00030958,6]
[385833151,1758058249396,-545.63669317,0.00030958,6]
[385833153,1758058249405,-585.22,0.00030958,6]
[385833155,1758058249415,-400.0,0.00030958,6]
[385833158,1758058249425,-400.0,0.00030958,6]
[385833160,1758058249436,-431.69,0.00030958,6]
[385833162,1758058249446,-400.0,0.00030958,6]
[385833164,1758058249455,-400.0,0.00030958,6]
[385833166,1758058249465,-400.0,0.00030958,6]
[385833168,1758058249475,-400.0,0.00030958,6]
[385833170,1758058249484,-400.0,0.00030958,6]
[385833172,1758058249494,-500.0,0.00030971,7]
[385833174,1758058249504,-600.0,0.00030991,7]
[385833176,1758058249514,-3831.57883618,0.00031,120]
[385833178,1758058249523,-166.0,0.00031,120]
[385833180,1758058249533,-151.0,0.00031,120]
[385833182,1758058249544,-400.0,0.0003102,6]
[385833184,1758058249554,-400.0,0.0003102,6]
[385833187,1758058249563,-400.0,0.0003102,6]
[385833189,1758058249573,-400.0,0.0003102,6]
[385833191,1758058249583,-400.0,0.0003102,6]
[385833193,1758058249593,-400.0,0.0003102,6]
[385833195,1758058249602,-439.88,0.0003102,6]
[385833197,1758058249612,-400.0,0.0003102,6]
[385833199,1758058249622,-400.0,0.0003102,6]
[385833201,1758058249632,-400.0,0.0003102,6]
[385833203,1758058249641,-400.0,0.0003102,6]
[385833205,1758058249651,-400.0,0.0003102,6]
[385833207,1758058249661,-400.0,0.0003102,6]
[385833209,1758058249671,-400.0,0.0003102,6]
[385833212,1758058249681,-400.0,0.0003102,6]
[385833214,1758058249691,-595.63,0.0003102,6]
[385833216,1758058249701,-400.0,0.0003102,6]
[385833218,1758058249711,-400.0,0.0003102,6]
[385833220,1758058249721,-461.84,0.0003102,6]
[385833222,1758058249731,-400.0,0.0003102,6]
[385833224,1758058249741,-924.18,0.0003102,6]
[385833226,1758058249751,-400.0,0.0003102,6]
[385833228,1758058249761,-400.0,0.0003102,6]
[385833230,1758058249771,-400.0,0.0003102,6]
[385833232,1758058249780,-400.0,0.0003102,6]
[385833234,1758058249790,-400.0,0.0003102,6]
[385833236,1758058249800,-779.04,0.0003102,6]
[385833239,1758058249810,-11748.77,0.0003102,6]
[385833241,1758058249820,-400.0,0.0003102,6]
[385833243,1758058249830,-400.0,0.0003102,6]
[385833245,1758058249839,-846.77,0.0003102,6]
[385833247,1758058249849,-816.88,0.0003102,6]
[385833287,1758058249858,-417.79,0.0003102,6]
[385833290,1758058250225,-617.06,0.0003102,6]
[385833292,1758058250234,-400.0,0.0003102,6]
[385833294,1758058250243,-956.08,0.0003102,6]
[385833296,1758058250253,-700.0,0.00031045,7]
[385833298,1758058250262,-500.0,0.00031059,7]
[385833300,1758058250271,-500.0,0.00031138,7]
[385833302,1758058250280,-160.0,0.00031145,2]
[385833304,1758058250289,-1523.16,0.00031152,2]
[385833306,1758058250298,-561.59057932,0.00031169,7]
[385833308,1758058250307,-600.0,0.00031172,7]
[385833310,1758058250317,-700.0,0.00031178,7]
[385833312,1758058250326,-198.74255137,0.00031193,6]
[385833314,1758058250335,-173.5633249,0.00031193,6]
[385833316,1758058250344,-400.0,0.00031193,6]
[385833318,1758058250353,-400.0,0.00031193,6]
[385833320,1758058250362,-400.0,0.00031193,6]
[385833322,1758058250371,-400.0,0.00031193,6]
[385833324,1758058250380,-400.0,0.00031193,6]
[385833326,1758058250390,-400.0,0.00031193,6]
[385833328,1758058250399,-400.0,0.00031193,6]
[385833330,1758058250408,-400.0,0.00031193,6]
[385833332,1758058250417,-400.0,0.00031193,6]
[385833334,1758058250426,-400.0,0.00031193,6]
[385833336,1758058250436,-400.0,0.00031193,6]
[385833338,1758058250445,-400.0,0.00031193,6]
[385833340,1758058250454,-1275.83,0.00031193,6]
[385833342,1758058250463,-408.95,0.00031193,6]
[385833344,1758058250472,-400.0,0.00031193,6]
[385833346,1758058250481,-400.0,0.00031193,6]
[385833348,1758058250490,-400.0,0.00031193,6]
[385833350,1758058250499,-400.0,0.00031193,6]
[385833352,1758058250509,-467.76,0.00031193,6]
[385833354,1758058250518,-400.0,0.00031193,6]
[385833356,1758058250527,-833.72,0.00031193,6]
[385833358,1758058250537,-400.0,0.00031193,6]
[385833360,1758058250546,-400.0,0.00031193,6]
[385833362,1758058250555,-400.0,0.00031193,6]
[385833364,1758058250565,-529.33,0.00031193,6]
[385833366,1758058250574,-935.51,0.00031193,6]
[385833367,1758058250583,-539.44,0.00031193,6]
[385833368,1758058250593,-1999.999999,0.0003121,2]
[385833369,1758058250602,-885.22,0.0003123,6]
[385833370,1758058250611,-882.33,0.0003123,6]
[385833371,1758058250620,-400.0,0.0003123,6]
[385833372,1758058250629,-583.88,0.0003123,6]
[385833373,1758058250638,-200.46,0.00031231,6]
[385833374,1758058250647,-400.0,0.00031231,6]
[385833376,1758058250656,-400.0,0.00031231,6]
[385833378,1758058250666,-438.99567815,0.00031231,6]
[385833380,1758058250675,-400.0,0.00031231,6]
[385833382,1758058250684,-400.0,0.00031231,6]
[385833384,1758058250693,-400.0,0.00031231,6]
[385833386,1758058250703,-400.0,0.00031231,6]
[385833388,1758058250712,-400.0,0.00031231,6]
[385833390,1758058250721,-400.0,0.00031231,6]
[385833392,1758058250732,-400.0,0.00031231,6]
[385833394,1758058250742,-400.0,0.00031231,6]
[385833397,1758058250751,-400.0,0.00031231,6]
[385833398,1758058250761,-400.0,0.00031231,6]
[385833401,1758058250771,-400.0,0.00031231,6]
[385833403,1758058250781,-544.6,0.00031231,6]
[385833405,1758058250791,-400.0,0.00031231,6]
[385833407,1758058250800,-400.0,0.00031231,6]
[385833409,1758058250810,-400.0,0.00031231,6]
[385833411,1758058250822,-400.0,0.00031231,6]
[385833413,1758058250831,-400.0,0.00031231,6]
[385833415,1758058250841,-400.0,0.00031231,6]
[385833417,1758058250850,-1543.15,0.00031231,6]
[385833419,1758058250859,-400.0,0.00031231,6]
[385833421,1758058250869,-400.0,0.00031231,6]
[385833423,1758058250882,-400.0,0.00031231,6]
[385833425,1758058250891,-2060.24,0.00031231,6]
[385833426,1758058250901,-470.32829007,0.00031231,6]
[385833429,1758058250910,-400.0,0.00031231,6]
[385833431,1758058250921,-400.0,0.00031231,6]
[385833433,1758058250930,-537.85,0.00031231,6]
[385833435,1758058250940,-400.0,0.00031231,6]
[385833437,1758058250950,-400.0,0.00031231,6]
[385833439,1758058250959,-400.0,0.00031231,6]
[385833441,1758058250968,-217.62730921,0.00031231,6]
[385833443,1758058250977,-2321.08,0.00031231,6]
[385833445,1758058250986,-400.0,0.00031231,6]
[385833447,1758058250995,-400.0,0.00031231,6]
[385833449,1758058251004,-400.0,0.00031231,6]
[385833451,1758058251014,-400.0,0.00031231,6]
[385833453,1758058251023,-400.0,0.00031231,6]
[385833454,1758058251032,-333.74041888,0.00031231,6]
[385833457,1758058251042,-400.0,0.00031231,6]
[385833459,1758058251051,-400.0,0.00031231,6]
[385833461,1758058251060,-2927.23,0.00031231,6]
[385833463,1758058251070,-400.0,0.00031231,6]
[385833465,1758058251079,-400.0,0.00031232,6]
[385833467,1758058251088,-400.0,0.00031232,6]
[385833469,1758058251097,-503.03245637,0.00031232,6]
[385833471,1758058251110,-461.14,0.00031232,6]
[385833473,1758058251119,-400.0,0.00031232,6]
[385833475,1758058251128,-400.0,0.00031232,6]
[385833477,1758058251138,-400.0,0.00031232,6]
[385833479,1758058251147,-400.0,0.00031232,6]
[385833481,1758058251156,-400.0,0.00031232,6]
[385833483,1758058251165,-467.77,0.00031232,6]
[385833485,1758058251176,-400.0,0.00031232,6]
[385833487,1758058251185,-400.0,0.00031232,6]
[385833489,1758058251194,-400.0,0.00031232,6]
[385833491,1758058251203,-235.06,0.00031232,6]
[385833493,1758058251212,-190.58,0.00031232,6]
[385833495,1758058251222,-400.0,0.00031232,6]
[385833497,1758058251231,-400.0,0.00031232,6]
[385833499,1758058251240,-535.12,0.00031232,6]
[385833501,1758058251253,-400.0,0.00031232,6]
[385833503,1758058251265,-400.0,0.00031232,6]
[385833505,1758058251278,-471.96,0.00031232,6]
[385833507,1758058251296,-400.0,0.00031232,6]
[385833509,1758058251305,-530.21,0.00031232,6]
[385833511,1758058251314,-727.34,0.00031232,6]
[385833513,1758058251323,-531.6,0.00031232,6]
[385833515,1758058251332,-2312.57,0.00031232,6]
[385833517,1758058251342,-586.9,0.00031232,6]
[385833519,1758058251351,-400.0,0.00031232,6]
[385833521,1758058251360,-400.0,0.00031232,6]
[385833523,1758058251369,-627.93,0.00031232,6]
[385833525,1758058251379,-753.33,0.00031232,6]
[385833527,1758058251389,-400.0,0.00031232,6]
[385833529,1758058251398,-400.0,0.00031232,6]
[385833531,1758058251407,-400.0,0.00031232,6]
[385833533,1758058251416,-589.16,0.00031232,6]
[385833535,1758058251426,-609.41,0.00031232,6]
[385833537,1758058251435,-510.36,0.00031232,6]
[385833539,1758058251444,-400.0,0.00031232,6]
[385833541,1758058251454,-684.2,0.00031232,6]
[385833543,1758058251463,-2593.28,0.00031232,6]
[385833545,1758058251472,-511.86,0.00031232,6]
[385833547,1758058251481,-764.41,0.00031232,6]
[385833549,1758058251491,-409.5,0.00031232,6]
[385833551,1758058251500,-594.69,0.00031232,6]
[385833553,1758058251509,-400.0,0.00031232,6]
[385833555,1758058251518,-400.0,0.00031232,6]
[385833557,1758058251528,-918.03,0.00031232,6]
[385833559,1758058251537,-563.64,0.00031232,6]
[385833561,1758058251546,-955.33,0.00031232,6]
[385833563,1758058251555,-3040.54,0.00031232,6]
[385833565,1758058251564,-400.0,0.00031232,6]
[385833567,1758058251573,-400.0,0.00031232,6]
[385833569,1758058251583,-594.06,0.00031232,6]
[385833571,1758058251593,-659.68,0.00031232,6]
[385833573,1758058251602,-400.0,0.00031232,6]
[385833575,1758058251612,-483.06,0.00031232,6]
[385833577,1758058251622,-400.0,0.00031232,6]
[385833579,1758058251631,-585.22,0.00031232,6]
[385833581,1758058251640,-400.0,0.00031232,6]
[385833583,1758058251650,-400.0,0.00031232,6]
[385833585,1758058251659,-431.69,0.00031232,6]
[385833587,1758058251668,-400.0,0.00031232,6]
[385833589,1758058251677,-400.0,0.00031232,6]
[385833591,1758058251686,-400.0,0.00031232,6]
[385833593,1758058251695,-400.0,0.00031232,6]
[385833595,1758058251704,-700.0,0.00031234,7]
[385833597,1758058251713,-500.0,0.00031269,7]
[385833599,1758058251722,-400.0,0.00031294,6]
[385833601,1758058251732,-400.0,0.00031294,6]
[385833604,1758058251743,-400.0,0.00031294,6]
[385833606,1758058251753,-400.0,0.00031294,6]
[385833608,1758058251762,-400.0,0.00031294,6]
[385833610,1758058251771,-400.0,0.00031294,6]
[385833612,1758058251781,-439.88,0.00031294,6]
[385833614,1758058251790,-400.0,0.00031294,6]
[385833615,1758058251799,-400.0,0.00031294,6]
[385833618,1758058251808,-400.0,0.00031294,6]
[385833620,1758058251817,-400.0,0.00031294,6]
[385833622,1758058251827,-400.0,0.00031294,6]
[385833624,1758058251836,-400.0,0.00031294,6]
[385833626,1758058251846,-400.0,0.00031294,6]
[385833628,1758058251855,-400.0,0.00031294,6]
[385833630,1758058251865,-595.63,0.00031294,6]
[385833631,1758058251877,-400.0,0.00031294,6]
[385833633,1758058251886,-400.0,0.00031294,6]
[385833636,1758058251896,-461.84,0.00031294,6]
[385833638,1758058251906,-400.0,0.00031294,6]
[385833640,1758058251915,-924.18,0.00031294,6]
[385833642,1758058251924,-400.0,0.00031294,6]
[385833644,1758058251934,-400.0,0.00031294,6]
[385833646,1758058251943,-400.0,0.00031294,6]
[385833648,1758058251952,-400.0,0.00031294,6]
[385833650,1758058251962,-400.0,0.00031294,6]
[385833652,1758058251971,-779.04,0.00031294,6]
[385833654,1758058251980,-11748.77,0.00031294,6]
[385833656,1758058251989,-400.0,0.00031294,6]
[385833658,1758058251998,-283.30822333,0.00031294,6]
[385833660,1758058252007,-846.77,0.00031294,6]
[385833661,1758058252016,-816.88,0.00031294,6]
[385833662,1758058252025,-417.79,0.00031294,6]
[385833663,1758058252034,-617.06,0.00031294,6]
[385833664,1758058252043,-956.08,0.00031294,6]
[385833665,1758058252053,-500.0,0.00031309,7]
[385833666,1758058252062,-168.0,0.00031354,2]
[385833667,1758058252071,-1000.0,0.00031355,7]
[385833668,1758058252081,-269.432,0.00031356,2]
[385833670,1758058252090,-897.0,0.00031356,2]
[385833672,1758058252099,-505.67,0.00031356,2]
[385833674,1758058252108,-500.0,0.00031361,7]
[385833676,1758058252118,-700.0,0.00031367,7]
[385833678,1758058252127,-500.0,0.00031387,7]
[385833680,1758058252136,-168.54,0.00031455,2]
[385833682,1758058252145,-201.4,0.00031456,2]
[385833684,1758058252154,-160.0,0.00031466,2]
[385833686,1758058252163,-160.0,0.00031466,2]
[385833688,1758058252172,-515.95536276,0.00031466,2]
[385833690,1758058252182,-213.1401216,0.00031466,2]
[385833693,1758058252191,-400.0,0.00031467,6]
[385833694,1758058252201,-400.0,0.00031467,6]
[385833696,1758058252210,-400.0,0.00031467,6]
[385833699,1758058252219,-400.0,0.00031467,6]
[385833700,1758058252228,-400.0,0.00031467,6]
[385833703,1758058252238,-400.0,0.00031467,6]
[385833704,1758058252247,-400.0,0.00031467,6]
[385833706,1758058252257,-400.0,0.00031467,6]
[385833708,1758058252266,-400.0,0.00031467,6]
[385833710,1758058252275,-400.0,0.00031467,6]
[385833712,1758058252284,-400.0,0.00031467,6]
[385833714,1758058252293,-400.0,0.00031467,6]
[385833716,1758058252302,-1275.83,0.00031467,6]
[385833718,1758058252311,-408.95,0.00031467,6]
[385833720,1758058252320,-400.0,0.00031467,6]
[385833722,1758058252329,-400.0,0.00031467,6]
[385833724,1758058252338,-400.0,0.00031467,6]
[385833726,1758058252347,-400.0,0.00031467,6]
[385833728,1758058252357,-467.76,0.00031467,6]
[385833730,1758058252366,-400.0,0.00031467,6]
[385833732,1758058252376,-833.72,0.00031467,6]
[385833734,1758058252390,-400.0,0.00031467,6]
[385833736,1758058252399,-400.0,0.00031467,6]
[385833738,1758058252408,-400.0,0.00031467,6]
[385833740,1758058252417,-529.33,0.00031467,6]
[385833742,1758058252426,-935.51,0.00031467,6]
[385833744,1758058252436,-539.44,0.00031467,6]
[385833746,1758058252445,-1000.0,0.00031487,7]
[385833749,1758058252454,-885.22,0.00031504,6]
[385833750,1758058252463,-882.33,0.00031504,6]
[385833752,1758058252472,-400.0,0.00031504,6]
[385833754,1758058252481,-583.88,0.00031504,6]
[385833756,1758058252490,-400.0,0.00031505,6]
[385833758,1758058252499,-400.0,0.00031505,6]
[385833760,1758058252509,-400.0,0.00031505,6]
[385833762,1758058252518,-400.0,0.00031505,6]
[385833765,1758058252527,-405.86287822,0.00031505,6]
[385833767,1758058252537,-400.0,0.00031505,6]
[385833785,1758058252696,-259.17202252,0.00031505,6]
[385833787,1758058252705,-400.0,0.00031505,6]
[385833789,1758058252714,-400.0,0.00031505,6]
[385833791,1758058252723,-400.0,0.00031505,6]
[385833793,1758058252732,-400.0,0.00031505,6]
[385833795,1758058252741,-279.60494393,0.00031505,6]
[385833797,1758058252750,-406.30826408,0.00031505,6]
[385833799,1758058252759,-400.0,0.00031505,6]
[385833801,1758058252769,-500.0,0.00031505,6]
[385833803,1758058252778,-400.0,0.00031505,6]
[385833805,1758058252787,-251.23069993,0.00031505,6]
[385833807,1758058252796,-400.0,0.00031505,6]
[385833809,1758058252805,-400.0,0.00031505,6]
[385833811,1758058252815,-400.0,0.00031505,6]
[385833813,1758058252824,-400.0,0.00031505,6]
[385833815,1758058252833,-400.0,0.00031505,6]
[385833817,1758058252842,-400.0,0.00031505,6]
[385833819,1758058252851,-400.0,0.00031505,6]
[385833821,1758058252860,-486.63203412,0.00031505,6]
[385833823,1758058252872,-443.37581669,0.00031505,6]
[385833825,1758058252882,-400.0,0.00031505,6]
[385833827,1758058252891,-500.0,0.00031505,6]
[385833829,1758058252900,-400.0,0.00031505,6]
[385833831,1758058252910,-400.0,0.00031505,6]
[385833833,1758058252919,-406.64534098,0.00031505,6]
[385833835,1758058252929,-400.0,0.00031505,6]
[385833837,1758058252939,-400.0,0.00031505,6]
[385833839,1758058252949,-400.0,0.00031505,6]
[385833841,1758058252959,-400.0,0.00031505,6]
[385833843,1758058252968,-400.0,0.00031505,6]
[385833845,1758058252977,-400.0,0.00031505,6]
[385833847,1758058252986,-400.0,0.00031505,6]
[385833849,1758058252995,-400.0,0.00031505,6]
[385833851,1758058253005,-400.0,0.00031505,6]
[385833853,1758058253013,-400.0,0.00031505,6]
[385833855,1758058253023,-400.0,0.00031505,6]
[385833857,1758058253031,-400.0,0.00031505,6]
[385833859,1758058253040,-400.0,0.00031505,6]
[385833861,1758058253049,-400.0,0.00031505,6]
[385833863,1758058253059,-502.60106564,0.00031505,2]
[385833865,1758058253068,-400.0,0.00031505,6]
[385833867,1758058253077,-400.0,0.00031505,6]
[385833869,1758058253086,-400.0,0.00031505,6]
[385833871,1758058253096,-400.0,0.00031505,6]
[385833873,1758058253105,-400.0,0.00031505,6]
[385833875,1758058253115,-291.83029358,0.00031505,6]
[385833877,1758058253124,-400.0,0.00031505,6]
[385833879,1758058253133,-233.04761437,0.00031505,6]
[385833881,1758058253142,-400.0,0.00031505,6]
[385833883,1758058253151,-400.0,0.00031505,6]
[385833885,1758058253162,-400.0,0.00031505,6]
[385833887,1758058253172,-400.0,0.00031505,6]
[385833889,1758058253181,-400.0,0.00031505,6]
[385833891,1758058253191,-400.0,0.00031505,6]
[385833893,1758058253200,-400.0,0.00031505,6]
[385833895,1758058253210,-376.3684113,0.00031505,6]
[385833897,1758058253220,-400.0,0.00031505,6]
[385833899,1758058253229,-500.0,0.00031505,6]
[385833901,1758058253239,-400.0,0.00031505,6]
[385833903,1758058253248,-400.0,0.00031505,6]
[385833905,1758058253257,-400.0,0.00031505,6]
[385833907,1758058253267,-400.0,0.00031505,6]
[385833909,1758058253276,-375.10462897,0.00031505,6]
[385833911,1758058253285,-400.0,0.00031505,6]
[385833913,1758058253295,-400.0,0.00031505,6]